bitfinex/quotes_ETHUSD_20241022
["timestamp","ask_amount","ask_price","bid_price","bid_amount"]
[1729608760252,3.79272,2636.7,2636.5,0.009074]
[1729608760437,3.79241,2636.9,2636.6,2.41851581]
[1729608760614,3.79261,2636.7,2636.6,2.41851581]
[1729608760819,3.79261,2636.7,2636.5,0.78738981]
[1729608761442,3.79261,2636.7,2636.6,0.77831581]
[1729608761649,3.79251,2636.8,2636.7,0.009074]
[1729608763323,3.79251,2636.8,2636.7,0.78738981]
[1729608764346,3.79251,2636.8,2636.7,0.009074]
[1729608764758,3.79251,2636.8,2636.7,0.79105965]
[1729608765557,3.79261,2636.7,2636.6,1.17514583]
[1729608765864,5.32261,2636.7,2636.6,1.17514583]
[1729608766161,3.79276,2636.6,2636.5,21.30593511]
[1729608766326,3.79276,2636.6,2636.5,23.06184268]
[1729608766659,3.79276,2636.6,2636.5,22.66953264]
[1729608767082,3.79176,2637.3,2636.5,22.66953264]
[1729608767083,1.6657,2637.2,2636.5,20.91362507]
[1729608767222,3.79166,2637.4,2637.3,0.009074]
[1729608767569,3.79166,2637.4,2637.3,0.78375036]
[1729608767721,9.1627574,2637.4,2637.3,0.78375036]
[1729608768137,3.79166,2637.4,2637.2,0.79282436]
[1729608768480,3.79175,2637.3,2637.2,0.79282436]
[1729608769165,5.3710974,2637.6,2637.2,2.96266935]
[1729608769366,3.79161,2637.5,2637.2,2.96266935]
[1729608769769,3.79143,2637.6,2637.2,2.96266935]
[1729608769985,3.79153,2637.5,2637.2,2.96266935]
[1729608770281,3.7053974,2637.6,2637.2,2.96266935]
[1729608770457,3.79168,2637.4,2637.2,2.17891899]
[1729608770658,3.79168,2637.4,2637.3,0.45533694]
[1729608771581,3.79175,2637.3,2637.2,0.009074]
[1729608771756,3.7915,2637.5,2637.2,1.554074]
[1729608772082,3.79175,2637.3,2637.2,1.554074]
[1729608772956,3.79175,2637.3,2637.2,0.009074]
[1729608774349,3.79204,2637.1,2637.0,19.73]
[1729608774549,7.4974374,2637.1,2637.0,19.739074]
[1729608774748,3.79204,2637.1,2637.0,19.739074]
[1729608778395,3.79204,2637.1,2637.0,19.73]
[1729608778552,9.1377374,2637.1,2637.0,19.73]
[1729608778753,3.79247,2636.8,2636.5,0.009074]
[1729608778954,3.79305,2636.4,2636.3,19.739074]
[1729608779270,3.79305,2636.4,2636.3,21.92648714]
[1729608780296,1.6403,2636.6,2636.3,21.92648714]
[1729608780587,3.7053974,2636.8,2636.5,0.009074]
[1729608780890,3.79305,2636.4,2636.3,21.92648714]
[1729608782049,3.79305,2636.4,2636.3,19.739074]
[1729608782298,3.79305,2636.4,2636.3,0.009074]
[1729608782464,3.79348,2636.1,2636.0,0.009074]
[1729608782851,3.79335,2636.2,2636.0,0.009074]
[1729608783073,3.79383,2635.9,2635.7,19.739074]
[1729608783279,3.79377,2635.9,2635.7,21.94603644]
[1729608783499,3.79391,2635.8,2635.7,21.94603644]
[1729608784211,1.5467,2636.4,2635.7,21.94603644]
[1729608784212,3.7931,2636.4,2636.3,0.009074]
[1729608785760,3.79291,2636.5,2636.3,0.009074]
[1729608787517,7.58589,2636.5,2636.3,0.009074]
[1729608787831,3.79305,2636.4,2636.3,0.009074]
[1729608788623,3.79333,2636.2,2636.1,19.739074]
[1729608788827,3.79321,2636.3,2636.1,21.95764644]
[1729608789330,3.79305,2636.4,2636.3,0.009074]
[1729608789629,3.79333,2636.2,2636.1,19.739074]
[1729608790142,3.79321,2636.3,2636.1,19.739074]
[1729608790506,3.7053974,2636.6,2636.1,19.739074]
[1729608790749,3.7929,2636.5,2636.3,0.009074]
[1729608792933,3.79305,2636.4,2636.3,0.009074]
[1729608793134,3.7929,2636.5,2636.3,0.009074]
[1729608794555,3.79273,2636.7,2636.3,0.009074]
[1729608794722,3.79292,2636.5,2636.3,0.009074]
[1729608794923,3.79292,2636.5,2636.3,2.14348631]
[1729608796458,7.58593,2636.5,2636.3,2.14348631]
[1729608796835,3.79305,2636.4,2636.3,2.14348631]
[1729608797019,3.79305,2636.4,2636.1,19.73]
[1729608797020,3.79333,2636.2,2636.1,19.739074]
[1729608797420,3.79333,2636.2,2636.1,19.73]
[1729608797421,5.97793,2636.2,2636.1,19.73]
[1729608797838,5.97793,2636.2,2635.7,0.009074]
[1729608797839,8.97793,2636.2,2635.7,0.009074]
[1729608798034,9.1339074,2635.8,2635.7,0.009074]
[1729608798286,3.7942,2635.6,2635.5,0.009074]
[1729608798841,3.79449,2635.4,2635.3,0.009074]
[1729608799027,3.79449,2635.4,2635.3,2.21445644]
[1729608799227,3.79477,2635.2,2635.1,20.52282436]
[1729608799534,3.79465,2635.3,2635.1,19.739074]
[1729608799929,3.79477,2635.2,2635.1,19.739074]
[1729608801021,3.7053974,2635.6,2635.1,19.739074]
[1729608801022,0.55,2635.9,2635.2,1.5272]
[1729608801223,1.5829,2636.3,2635.9,0.009074]
[1729608801632,1.5829,2636.3,2635.7,0.009074]
[1729608801633,3.79383,2635.9,2635.7,0.009074]
[1729608801831,3.7942,2635.6,2635.3,19.739074]
[1729608802140,3.7942,2635.6,2635.2,0.78375036]
[1729608802141,3.79403,2635.8,2635.7,0.009074]
[1729608802306,3.79428,2635.6,2635.5,0.009074]
[1729608802774,3.79401,2635.8,2635.7,0.009074]
[1729608802775,3.79391,2635.8,2635.7,0.009074]
[1729608803143,5.37669,2635.9,2635.3,3.7946]
[1729608803144,3.79406,2635.7,2635.5,0.009074]
[1729608803347,9.0820874,2635.9,2635.7,0.009074]
[1729608804093,3.79399,2635.8,2635.7,0.009074]
[1729608804454,3.79387,2635.9,2635.5,0.009074]
[1729608804656,3.79391,2635.8,2635.7,0.009074]
[1729608804879,3.79391,2635.8,2635.5,0.3894224]
[1729608805187,3.79391,2635.8,2635.7,0.009074]
[1729608805385,3.79385,2635.9,2635.7,0.009074]
[1729608805747,3.79391,2635.8,2635.7,0.009074]
[1729608806462,3.79386,2635.9,2635.7,0.009074]
[1729608806865,5.43489,2636.1,2635.7,0.009074]
[1729608807101,5.3443974,2636.3,2635.9,0.009074]
[1729608807393,3.79362,2636.0,2635.9,0.009074]
[1729608809461,3.79342,2636.2,2635.9,0.009074]
[1729608809664,3.7935,2636.1,2635.7,3.803114]
[1729608810001,3.7935,2636.1,2635.5,4.1745984]
[1729608810002,3.7935,2636.1,2635.9,0.009074]
[1729608810171,5.3443974,2636.3,2635.9,0.009074]
[1729608810370,3.79362,2636.0,2635.9,0.009074]
[1729608811157,3.79419,2635.7,2635.5,0.3894224]
[1729608811403,3.79419,2635.7,2635.5,0.009074]
[1729608811609,3.7942,2635.6,2635.5,0.009074]
[1729608814576,3.79419,2635.7,2635.5,0.009074]
[1729608814788,3.7942,2635.6,2635.5,0.009074]
[1729608815298,3.79388,2635.9,2635.5,0.009074]
[1729608815506,3.79398,2635.8,2635.7,0.009074]
[1729608815810,3.79398,2635.8,2635.5,0.009074]
[1729608816009,1.6074,2636.1,2635.5,0.009074]
[1729608816010,3.79419,2635.7,2635.5,0.009074]
[1729608816219,3.7942,2635.6,2635.5,0.009074]
[1729608818723,3.79449,2635.4,2635.3,0.009074]
[1729608819181,7.4998874,2635.4,2635.3,0.009074]
[1729608819525,3.7944,2635.5,2635.3,0.009074]
[1729608819682,3.7943,2635.6,2635.3,0.009074]
[1729608820093,3.79448,2635.5,2635.3,0.009074]
[1729608820892,9.12277,2635.7,2635.3,0.009074]
[1729608821099,3.79417,2635.7,2635.6,0.009074]
[1729608821704,3.79386,2635.9,2635.6,0.009074]
[1729608821905,3.79392,2635.8,2635.6,0.009074]
[1729608822132,3.79386,2635.9,2635.6,0.009074]
[1729608822301,3.79355,2636.1,2635.8,0.009074]
[1729608822496,3.79333,2636.2,2635.9,1.5704]
[1729608822854,3.79333,2636.2,2636.1,0.009074]
[1729608825424,3.79362,2636.0,2635.9,0.009074]
[1729608825698,3.79377,2635.9,2635.8,19.73]
[1729608826611,7.4990174,2636.0,2635.7,1.632974]
[1729608826816,3.79391,2635.8,2635.7,0.009074]
[1729608829744,7.58738,2636.0,2635.7,0.009074]
[1729608829911,3.79365,2636.0,2635.7,0.009074]
[1729608830322,3.79365,2636.0,2635.7,0.61313398]
[1729608830817,3.79379,2635.9,2635.7,0.61313398]
[1729608831544,3.79365,2636.0,2635.7,0.61313398]
[1729608831748,3.79365,2636.0,2635.9,0.009074]
[1729608833521,3.7935,2636.1,2635.9,0.009074]
[1729608833926,3.79348,2636.1,2635.9,0.009074]
[1729608834253,3.79345,2636.2,2636.1,0.009074]
[1729608835608,3.79311,2636.4,2636.1,0.009074]
[1729608836031,3.79333,2636.2,2636.1,0.5482024]
[1729608836238,3.79312,2636.4,2636.1,0.009074]
[1729608837008,3.79319,2636.3,2636.1,0.009074]
[1729608839349,3.79333,2636.2,2636.1,0.009074]
[1729608839549,3.79319,2636.3,2636.1,0.009074]
[1729608840020,3.79333,2636.2,2636.1,0.009074]
[1729608841457,3.79377,2635.9,2635.7,0.009074]
[1729608841751,3.79391,2635.8,2635.7,0.009074]
[1729608841957,7.58768,2635.9,2635.7,0.009074]
[1729608842163,3.79377,2635.9,2635.7,0.009074]
[1729608842338,3.79391,2635.8,2635.7,0.009074]
[1729608843135,3.79377,2635.9,2635.5,0.79282436]
[1729608843427,3.7942,2635.6,2635.5,0.009074]
[1729608843968,7.58821,2635.7,2635.5,0.009074]
[1729608844266,3.79408,2635.7,2635.5,2.34314899]
[1729608844471,3.79393,2635.8,2635.7,0.009074]
[1729608844980,3.79383,2635.9,2635.7,0.009074]
[1729608845177,7.58771,2635.9,2635.7,0.009074]
[1729608845464,7.58771,2635.9,2635.7,0.32176393]
[1729608845671,3.79383,2635.9,2635.7,0.32176393]
[1729608845878,3.79391,2635.8,2635.7,0.32176393]
[1729608846227,3.79391,2635.8,2635.7,0.009074]
[1729608847877,3.7942,2635.6,2635.5,0.009074]
[1729608850371,3.79449,2635.4,2635.1,1.9684499]
[1729608850586,7.5001674,2635.2,2635.0,3.78375036]
[1729608850873,7.5001674,2635.2,2635.0,3.0]
[1729608850874,5.40572,2635.1,2635.0,3.0]
[1729608851034,5.95572,2635.1,2635.0,3.0]
[1729608851236,8.95572,2635.1,2635.0,3.0]
[1729608861511,5.95572,2635.1,2635.0,3.0]
[1729608862676,3.79492,2635.1,2635.0,3.0]
[1729608863981,4.34492,2635.1,2635.0,3.0]
[1729608864376,8.88372,2635.1,2635.0,3.0]
[1729608865116,4.34492,2635.1,2635.0,3.0]
[1729608865324,4.34492,2635.1,2635.0,3.3]
[1729608865325,3.79492,2635.1,2635.0,3.3]
[1729608865616,3.79479,2635.2,2635.0,3.3]
[1729608865914,3.79464,2635.3,2635.1,0.009074]
[1729608866113,3.79477,2635.2,2635.1,0.009074]
[1729608866281,3.79477,2635.2,2635.1,0.5012614]
[1729608869214,3.79464,2635.3,2635.1,0.5012614]
[1729608869751,3.7053974,2635.4,2635.1,0.5012614]
[1729608870030,3.79449,2635.4,2635.1,0.5012614]
[1729608870584,3.79412,2635.7,2635.4,0.009074]
[1729608870784,3.79393,2635.8,2635.6,0.009074]
[1729608871231,7.4993274,2635.8,2635.6,0.009074]
[1729608871415,3.7053974,2635.8,2635.6,0.009074]
[1729608871599,7.4990374,2636.0,2635.6,0.009074]
[1729608871798,3.79367,2636.0,2635.9,0.009074]
[1729608872130,3.79367,2636.0,2635.7,0.009074]
[1729608872131,3.79382,2635.9,2635.7,0.009074]
[1729608872430,7.4990274,2636.0,2635.7,0.009074]
[1729608873019,7.4990274,2636.0,2635.7,2.3624004]
[1729608873194,7.4990274,2636.0,2635.9,0.009074]
[1729608876133,8.0490274,2636.0,2635.9,0.009074]
[1729608877312,8.0490274,2636.0,2635.2,21.2494]
[1729608877313,3.79422,2635.6,2635.2,21.2494]
[1729608877465,4.34456,2635.4,2635.3,0.009074]
[1729608877623,3.7053974,2635.4,2635.3,0.009074]
[1729608877828,4.5479,2635.9,2635.1,3.79485]
[1729608877829,3.7053974,2636.0,2635.7,0.009074]
[1729608878153,4.34377,2635.9,2635.7,0.009074]
[1729608878362,7.4991274,2636.0,2635.7,0.009074]
[1729608878655,3.7053974,2636.0,2635.7,0.009074]
[1729608878857,1.5296,2636.2,2635.7,3.803104]
[1729608878858,9.0283274,2636.2,2635.7,3.803104]
[1729608879063,7.4987274,2636.2,2635.8,1.8906104]
[1729608879228,7.4987274,2636.2,2636.0,0.009074]
[1729608879428,3.79348,2636.1,2636.0,0.009074]
[1729608884166,7.4987374,2636.2,2636.0,0.009074]
[1729608885636,3.7053974,2636.2,2636.0,0.009074]
[1729608886363,8.32277,2636.4,2636.0,0.009074]
[1729608886364,15.8212874,2636.4,2636.0,0.009074]
[1729608886867,12.0281174,2636.4,2636.0,0.009074]
[1729608887084,3.0,2636.4,2636.0,4.3339314]
[1729608887249,3.0,2636.6,2636.2,3.802364]
[1729608887778,7.58533,2636.7,2636.4,0.009074]
[1729608887927,7.4982774,2636.6,2636.4,0.009074]
[1729608888430,3.7053974,2636.6,2636.4,0.009074]
[1729608888647,3.79219,2637.0,2636.6,0.009074]
[1729608888975,5.42208,2637.5,2637.0,3.801174]
[1729608889288,7.4970174,2637.4,2637.0,3.801174]
[1729608889446,7.4970174,2637.4,2637.0,0.009074]
[1729608889643,3.79162,2637.4,2637.0,3.801234]
[1729608889848,3.79162,2637.4,2637.0,0.009074]
[1729608890152,7.4967474,2637.6,2637.0,0.009074]
[1729608890358,3.79163,2637.4,2637.0,0.009074]
[1729608891083,3.79128,2637.7,2637.5,0.009074]
[1729608892150,3.7053974,2637.8,2637.5,0.009074]
[1729608892345,3.79129,2637.7,2637.5,0.009074]
[1729608892549,7.4964474,2637.8,2637.5,0.009074]
[1729608892746,3.7053974,2637.8,2637.5,0.009074]
[1729608893749,3.7912,2637.7,2637.5,0.009074]
[1729608894885,3.7053974,2637.8,2637.5,0.009074]
[1729608895054,3.79123,2637.7,2637.5,0.009074]
[1729608895458,4.34092,2637.9,2637.5,0.009074]
[1729608895683,3.79107,2637.8,2637.5,0.009074]
[1729608896610,7.4967174,2637.6,2637.5,0.009074]
[1729608897507,3.7053974,2637.6,2637.5,0.009074]
[1729608897833,7.4967174,2637.6,2637.5,0.009074]
[1729608898465,9.1376474,2637.8,2637.5,0.009074]
[1729608898666,9.1376374,2637.8,2637.5,0.009074]
[1729608898912,3.79104,2637.8,2637.5,1.573274]
[1729608899208,0.55,2637.9,2637.5,5.364654]
[1729608899699,0.55,2637.9,2637.5,2.4889044]
[1729608899901,0.55,2637.9,2637.5,6.2803644]
[1729608900263,4.3409,2637.9,2637.5,6.2803644]
[1729608900464,6.79073,2638.1,2637.7,3.79117]
[1729608900702,5.33106,2638.3,2637.8,3.79095]
[1729608900917,3.79003,2638.5,2638.1,3.7906]
[1729608901209,7.4956774,2638.4,2638.0,1.582574]
[1729608902007,3.79033,2638.3,2638.0,1.582574]
[1729608902508,3.79039,2638.3,2638.0,0.009074]
[1729608903365,3.79047,2638.2,2638.0,0.009074]
[1729608903588,3.7906,2638.1,2638.0,0.009074]
[1729608904690,7.4958674,2638.2,2638.0,0.009074]
[1729608904890,0.55,2638.3,2638.0,0.009074]
[1729608905596,3.79048,2638.2,2638.0,0.009074]
[1729608906064,0.55,2638.3,2638.0,0.009074]
[1729608906065,4.34033,2638.3,2638.0,0.009074]
[1729608906269,3.79049,2638.2,2638.0,0.009074]
[1729608906506,4.34033,2638.3,2638.0,0.009074]
[1729608906803,8.13078,2638.3,2638.0,0.009074]
[1729608907010,4.34033,2638.3,2638.0,0.009074]
[1729608907375,3.7906,2638.1,2638.0,0.009074]
[1729608907707,3.79047,2638.2,2638.0,0.009074]
[1729608907872,8.13074,2638.3,2638.0,0.009074]
[1729608908278,3.79046,2638.2,2638.0,0.009074]
[1729608908902,4.34032,2638.3,2638.0,0.009074]
[1729608909105,0.55,2638.3,2638.0,0.009074]
[1729608909305,4.34036,2638.3,2638.0,0.009074]
[1729608910218,3.79047,2638.2,2638.0,0.009074]
[1729608910375,3.79095,2637.9,2637.7,0.009074]
[1729608910576,3.79076,2638.0,2637.9,0.009074]
[1729608910918,4.34076,2638.0,2637.9,0.009074]
[1729608911481,0.55,2638.0,2637.9,0.009074]
[1729608911685,7.4958174,2638.3,2637.9,0.009074]
[1729608912026,0.55,2638.2,2638.0,1.6345]
[1729608913382,1.5399,2638.4,2638.2,0.009074]
[1729608913784,0.55,2638.4,2638.2,0.009074]
[1729608915186,3.7053974,2638.7,2638.2,3.799414]
[1729608915387,6.9176453,2638.8,2638.3,4.1701914]
[1729608915787,3.78975,2638.7,2638.3,0.3799414]
[1729608916189,3.1279753,2638.8,2638.3,4.1702314]
[1729608916387,3.9176353,2638.8,2638.6,0.009074]
[1729608916619,0.1279753,2638.8,2638.6,0.009074]
[1729608916999,0.1279753,2638.8,2638.6,0.5478744]
[1729608917211,0.1279753,2638.8,2638.6,4.3377444]
[1729608917535,0.1279753,2638.8,2638.7,5.30434]
[1729608917994,0.005,2639.3,2639.2,0.009074]
[1729608918335,0.005,2639.3,2639.2,1.523674]
[1729608918519,0.005,2639.3,2639.2,2.0549604]
[1729608919029,0.005,2639.3,2639.2,1.523674]
[1729608919199,3.79388,2639.3,2639.2,0.009074]
[1729608919393,4.34388,2639.3,2639.2,0.009074]
[1729608919593,4.34250265,2639.3,2639.2,0.009074]
[1729608920006,8.04790005,2639.3,2638.9,1.599774]
[1729608920300,3.78931,2639.0,2638.9,0.009074]
[1729608920519,8.04798005,2639.3,2638.9,2.14222763]
[1729608920721,3.79258265,2639.3,2639.1,0.009074]
[1729608921232,3.78902,2639.2,2639.1,0.009074]
[1729608921389,0.00362265,2639.3,2639.1,0.009074]
[1729608923241,3.79252265,2639.3,2639.1,0.009074]
[1729608923394,3.78902,2639.2,2639.1,0.009074]
[1729608924094,3.78902,2639.2,2638.9,1.510774]
[1729608924402,3.78902,2639.2,2639.1,0.009074]
[1729608924602,7.4944174,2639.2,2639.1,0.009074]
[1729608925804,3.78931,2639.0,2638.9,0.009074]
[1729608926139,3.78919,2639.1,2638.9,0.009074]
[1729608926921,3.78931,2639.0,2638.9,0.009074]
[1729608927236,3.7896,2638.8,2638.7,19.73]
[1729608927532,3.7896,2638.8,2638.5,0.79282436]
[1729608927533,3.78988,2638.6,2638.5,0.009074]
[1729608927690,3.78988,2638.6,2638.1,0.79282436]
[1729608927691,3.79046,2638.2,2638.1,0.79282436]
[1729608927897,3.79046,2638.2,2638.1,19.73]
[1729608927898,8.0458574,2638.2,2638.1,19.73]
[1729608928444,8.91176,2638.2,2638.1,19.73]
[1729608928595,3.79046,2638.2,2638.1,19.73]
[1729608929031,5.96466,2638.2,2638.1,19.73]
[1729608929450,1.6193,2638.8,2638.3,0.009074]
[1729608929736,3.79004,2638.5,2638.4,0.009074]
[1729608929895,3.7053974,2638.9,2638.4,0.009074]
[1729608930100,3.78989,2638.6,2638.4,0.009074]
[1729608930431,3.79003,2638.5,2638.4,0.009074]
[1729608930637,3.78974,2638.7,2638.4,0.009074]
[1729608930838,3.7899,2638.6,2638.4,0.009074]
[1729608932611,3.78981,2638.7,2638.4,0.20591899]
[1729608932838,3.78974,2638.7,2638.6,0.009074]
[1729608933131,3.7053974,2638.9,2638.6,0.009074]
[1729608933317,3.78932,2639.0,2638.8,0.009074]
[1729608933523,3.79256265,2639.3,2639.1,0.009074]
[1729608933733,0.00362265,2639.3,2639.2,1.6568]
[1729608934035,0.00362265,2639.3,2639.2,2.2023104]
[1729608934405,0.00362265,2639.3,2639.2,2.98606076]
[1729608935039,3.79250265,2639.3,2639.2,2.44055036]
[1729608935940,3.79250265,2639.3,2639.2,0.78375036]
[1729608936112,3.79250265,2639.3,2639.1,0.79282436]
[1729608938044,3.78902,2639.2,2639.1,0.009074]
[1729608939250,3.78917,2639.1,2639.0,0.009074]
[1729608940108,3.79258265,2639.3,2639.0,0.009074]
[1729608940309,3.79258265,2639.3,2639.0,0.58487699]
[1729608940529,3.79258265,2639.3,2639.1,1.6659]
[1729608941960,7.58159265,2639.3,2639.1,1.6659]
[1729608942143,0.00362265,2639.3,2639.2,0.009074]
[1729608942338,3.79250265,2639.3,2639.2,0.009074]
[1729608942539,0.00362265,2639.3,2639.2,0.31252674]
[1729608943222,3.79250265,2639.3,2639.2,0.009074]
[1729608944123,0.00362265,2639.3,2639.2,0.009074]
[1729608946254,3.79250265,2639.3,2639.2,0.009074]
[1729608946559,0.00362265,2639.3,2639.2,0.009074]
[1729608946739,0.00362265,2639.3,2639.2,0.5554954]
[1729608947171,0.00362265,2639.3,2639.2,0.009074]
[1729608950363,3.79250265,2639.3,2639.2,0.009074]
[1729608951461,0.00362265,2639.3,2639.2,0.009074]
[1729608951668,3.79250265,2639.3,2639.2,0.009074]
[1729608952984,0.005,2639.5,2639.2,5.3765714]
[1729608953150,3.78685,2640.8,2640.3,0.009074]
[1729608953473,3.78659,2640.9,2640.3,1.671174]
[1729608953648,3.78645,2641.0,2640.3,1.671174]
[1729608953847,3.78633,2641.1,2640.3,1.671174]
[1729608954176,3.78591,2641.4,2640.3,5.53435617]
[1729608954482,3.8333727,2641.5,2640.3,25.198614]
[1729608954651,0.1279753,2641.5,2640.3,25.198614]
[1729608954833,0.1279753,2641.5,2640.3,27.68202821]
[1729608955233,0.1279753,2641.5,2640.3,29.50480376]
[1729608955477,0.1279753,2641.5,2640.3,34.3255774]
[1729608956343,0.1279753,2641.5,2640.6,0.01]
[1729608956643,0.1169753,2641.5,2641.2,0.009074]
[1729608957081,3.78602,2641.3,2641.0,19.73]
[1729608957282,0.55,2641.2,2641.0,19.73]
[1729608957488,0.55,2641.1,2641.0,19.73]
[1729608958079,4.3363,2641.1,2641.0,19.73]
[1729608958294,0.55,2641.1,2641.0,19.73]
[1729608958442,4.3363,2641.1,2641.0,19.73]
[1729608959185,0.55,2641.1,2641.0,19.73]
[1729608960184,3.55,2641.3,2640.9,0.009074]
[1729608960356,0.55,2641.1,2640.9,0.009074]
[1729608961078,0.55,2641.2,2640.9,0.009074]
[1729608961970,4.33623,2641.2,2640.9,0.009074]
[1729608962282,0.55,2641.3,2640.9,0.009074]
[1729608962588,3.0,2641.4,2640.9,3.795654]
[1729608962759,3.0,2641.4,2641.0,3.78643]
[1729608963278,3.0,2641.4,2641.0,1.6471]
[1729608963701,6.78587,2641.4,2641.0,1.6471]
[1729608964278,0.1169753,2641.5,2641.2,0.009074]
[1729608965600,3.9027153,2641.5,2641.2,0.009074]
[1729608966374,0.1169753,2641.5,2641.2,0.009074]
[1729608966575,3.78589,2641.4,2641.2,0.009074]
[1729608969110,0.1169753,2641.5,2641.2,0.009074]
[1729608969314,3.78601,2641.3,2641.2,0.009074]
[1729608969807,3.78588,2641.4,2641.2,0.009074]
[1729608971012,3.78601,2641.3,2641.2,0.009074]
[1729608972039,7.4914074,2641.3,2641.2,0.009074]
[1729608972187,7.4914074,2641.3,2640.7,0.009074]
[1729608972188,3.78673,2640.8,2640.7,0.009074]
[1729608972370,3.78673,2640.8,2640.5,0.009074]
[1729608972371,3.78701,2640.6,2640.5,0.009074]
[1729608972694,3.7053974,2641.1,2640.2,19.73]
[1729608972695,3.7873,2640.4,2640.3,0.009074]
[1729608973289,3.78759,2640.2,2640.1,0.009074]
[1729608973817,3.78731,2640.4,2640.1,0.009074]
[1729608974111,3.0,2640.6,2640.1,0.009074]
[1729608974301,3.78738,2640.4,2640.1,0.009074]
[1729608974812,3.78735,2640.4,2640.1,0.009074]
[1729608974971,3.78759,2640.2,2640.1,0.009074]
[1729608975373,3.78778,2640.1,2639.5,0.009074]
[1729608975573,7.4937274,2639.7,2639.5,0.009074]
[1729608975811,7.4935074,2639.9,2639.7,0.009074]
[1729608976112,11.2815974,2639.9,2639.7,0.009074]
[1729608976313,3.78816,2639.8,2639.7,0.009074]
[1729608976619,7.4934974,2639.9,2639.5,0.009074]
[1729608976620,3.78845,2639.6,2639.5,0.009074]
[1729608977327,3.78873,2639.4,2639.1,0.009074]
[1729608977486,7.4942474,2639.4,2639.3,0.009074]
[1729608978492,3.78845,2639.6,2639.3,0.009074]
[1729608978885,3.78831,2639.7,2639.3,0.009074]
[1729608979509,3.0,2640.0,2639.5,0.009074]
[1729608979821,7.4935274,2639.9,2639.5,0.009074]
[1729608980019,3.78838,2639.7,2639.5,0.009074]
[1729608980180,3.78845,2639.6,2639.5,0.009074]
[1729608981319,3.78871,2639.5,2639.3,0.009074]
[1729608981522,3.78845,2639.6,2639.5,0.009074]
[1729608981683,7.4937174,2639.7,2639.3,0.009074]
[1729608981684,3.78862,2639.5,2639.3,0.009074]
[1729608981876,3.78873,2639.4,2639.3,0.009074]
[1729608982730,3.78902,2639.2,2639.1,19.739074]
[1729608983020,7.4944174,2639.2,2639.1,19.739074]
[1729608983526,5.43222,2639.5,2639.1,21.7129814]
[1729608983527,3.78859,2639.5,2639.1,21.7129814]
[1729608983818,3.78861,2639.5,2639.3,0.009074]
[1729608984327,3.78873,2639.4,2639.3,0.009074]
[1729608984688,7.4940074,2639.5,2639.3,0.009074]
[1729608984994,0.55,2639.6,2639.4,0.009074]
[1729608984995,3.78845,2639.6,2639.4,0.009074]
[1729608985527,3.78833,2639.7,2639.4,0.009074]
[1729608985691,3.78833,2639.7,2639.6,0.009074]
[1729608986084,7.4934374,2639.9,2639.6,0.009074]
[1729608986310,0.55,2639.8,2639.6,0.009074]
[1729608986523,3.7883,2639.7,2639.6,0.009074]
[1729608986825,7.4936974,2639.7,2639.6,0.009074]
[1729608987437,3.78902,2639.2,2639.1,19.739074]
[1729608988203,3.7889,2639.3,2639.1,19.739074]
[1729608988392,3.7889,2639.3,2639.1,21.7129814]
[1729608988617,3.78902,2639.2,2639.1,21.7129814]
[1729608988787,3.78873,2639.4,2639.1,21.7129814]
[1729608989192,7.4940974,2639.5,2639.1,21.7129814]
[1729608989193,3.78869,2639.5,2639.1,21.7129814]
[1729608989418,3.7053974,2639.5,2639.1,21.7129814]
[1729608989590,3.78873,2639.4,2639.1,19.739074]
[1729608989925,7.4944174,2639.2,2639.1,19.739074]
[1729608990289,8.0444174,2639.2,2639.1,19.739074]
[1729608990705,7.4944174,2639.2,2639.1,19.739074]
[1729608990922,8.0444174,2639.2,2639.1,19.739074]
[1729608991796,8.0444174,2639.2,2639.1,0.009074]
[1729608993834,3.7896,2638.8,2638.5,0.009074]
[1729608994039,3.78988,2638.6,2638.5,0.009074]
[1729608994247,3.78981,2638.7,2638.5,0.009074]
[1729608994452,3.7053974,2638.6,2638.5,0.009074]
[1729608994653,3.79033,2638.3,2637.9,21.354374]
[1729608994934,3.79033,2638.3,2637.9,2.60187109]
[1729608994935,3.79046,2638.2,2637.9,2.60187109]
[1729608995143,3.7053974,2638.3,2637.9,3.799914]
[1729608995311,3.7053974,2638.3,2638.1,0.009074]
[1729608995940,1.6032,2638.7,2638.3,3.79024]
[1729608996125,7.4949374,2638.9,2638.5,0.009074]
[1729608996343,7.4949374,2638.9,2638.7,0.009074]
[1729608996344,3.7053974,2638.9,2638.7,0.009074]
[1729608996653,3.7053974,2639.1,2638.7,3.798724]
[1729608996806,3.78906,2639.2,2638.8,0.3798724]
[1729608997008,3.7053974,2639.1,2638.8,0.3798724]
[1729608997234,3.7053974,2639.1,2638.7,0.009074]
[1729608997235,3.7053974,2639.1,2638.7,5.365644]
[1729608997429,7.4946574,2639.1,2638.7,1.575974]
[1729608997629,7.4946474,2639.1,2638.7,1.575974]
[1729608998046,11.2839174,2639.1,2638.7,1.575974]
[1729608998354,3.7053974,2639.1,2639.0,0.009074]
[1729608998651,3.7891,2639.2,2639.0,0.009074]
[1729608999319,7.4945674,2639.1,2639.0,0.009074]
[1729608999944,8.0445674,2639.1,2638.7,0.009074]
[1729609000118,3.78917,2639.1,2639.0,0.009074]
[1729609000322,5.40186,2639.3,2639.0,0.009074]
[1729609000323,3.78896,2639.3,2639.0,0.009074]
[1729609000517,3.78889,2639.3,2639.0,0.009074]
[1729609000911,3.78889,2639.3,2639.0,0.5510944]
[1729609001253,3.78889,2639.3,2639.0,0.009074]
[1729609002056,7.57785,2639.3,2639.0,0.009074]
[1729609002417,3.78889,2639.3,2639.0,0.009074]
[1729609002616,7.57789,2639.3,2639.0,0.009074]